bitfinex-derivatives/quotes_BTCF0:USTF0_20250506
["timestamp","ask_amount","ask_price","bid_price","bid_amount"]
[1746495816337,0.6754577,94451.0,94450.0,0.42710415]
[1746495816338,0.7577577,94451.0,94450.0,0.42710415]
[1746495816647,0.51346,94451.0,94450.0,0.42910415]
[1746495816843,0.8311177,94451.0,94450.0,0.42910415]
[1746495817741,0.8311177,94451.0,94450.0,0.21732015]
[1746495817951,0.8311177,94451.0,94450.0,0.002]
[1746495819247,0.8311177,94451.0,94450.0,0.213784]
[1746495819436,1.1919177,94451.0,94450.0,0.213784]
[1746495819640,0.8069,94451.0,94450.0,0.213784]
[1746495819840,0.0853,94451.0,94450.0,0.213784]
[1746495820346,0.0853,94451.0,94450.0,0.371084]
[1746495820552,0.0853,94451.0,94450.0,0.412684]
[1746495820848,0.003,94451.0,94450.0,0.412684]
[1746495823349,0.003,94451.0,94450.0,0.462684]
[1746495825548,0.003,94451.0,94450.0,0.81856]
[1746495825852,0.211745,94468.0,94467.0,0.2646746]
[1746495826153,0.211745,94468.0,94467.0,0.3826746]
[1746495826351,0.211745,94468.0,94467.0,0.3297391]
[1746495826749,0.211745,94468.0,94467.0,0.3723391]
[1746495826942,0.254645,94468.0,94467.0,0.3723391]
[1746495827349,0.260645,94468.0,94467.0,0.3723391]
[1746495828156,0.265645,94468.0,94467.0,0.1616]
[1746495828449,0.265645,94468.0,94467.0,0.4128391]
[1746495832351,0.2227436,94468.0,94467.0,0.4128391]
[1746495835555,0.2227436,94468.0,94467.0,0.3307391]
[1746495836153,0.2227436,94468.0,94467.0,0.2127391]
[1746495836754,0.30275775,94468.0,94467.0,0.2127391]
[1746495837055,0.30275775,94468.0,94467.0,0.2523391]
[1746495837653,0.30275775,94468.0,94467.0,0.2925391]
[1746495838545,0.09101415,94468.0,94467.0,0.2925391]
[1746495839155,0.09101415,94468.0,94467.0,0.4105391]
[1746495839548,0.011,94468.0,94467.0,0.4105391]
[1746495843356,0.2227436,94468.0,94467.0,0.1586]
[1746495843661,0.2227436,94468.0,94467.0,0.119]
[1746495844254,0.2227436,94468.0,94467.0,0.001]
[1746495844453,0.2227436,94468.0,94467.0,0.0405]
[1746495845250,0.2227436,94468.0,94467.0,0.001]
[1746495845861,0.3285996,94468.0,94467.0,0.001]
[1746495846561,0.3285996,94468.0,94467.0,0.2127458]
[1746495846748,0.3285996,94468.0,94467.0,0.001]
[1746495847158,0.3285996,94468.0,94467.0,0.2127458]
[1746495847859,0.37236031,94468.0,94467.0,0.2127458]
[1746495848047,0.26650431,94468.0,94467.0,0.2127458]
[1746495849552,0.26650431,94468.0,94467.0,0.001]
[1746495851058,0.264704,94461.0,94460.0,0.2117599]
[1746495851369,0.264704,94461.0,94455.0,0.2540683]
[1746495851370,0.2117705,94456.0,94455.0,0.2540683]
[1746495852058,0.0804,94460.0,94445.0,0.00105881]
[1746495852059,0.0529475,94449.0,94445.0,0.00105881]
[1746495852254,0.0529475,94449.0,94446.0,0.0409]
[1746495852255,0.2117929,94447.0,94446.0,0.0409]
[1746495852460,0.5715929,94447.0,94446.0,0.2526929]
[1746495852657,0.2117929,94446.0,94445.0,0.00105881]
[1746495852860,0.2107929,94446.0,94445.0,0.21285401]
[1746495853163,0.2914929,94446.0,94445.0,0.33085401]
[1746495853357,0.2914929,94446.0,94445.0,0.11905881]
[1746495853666,0.3963729,94446.0,94445.0,0.11905881]
[1746495853859,0.3963729,94446.0,94445.0,0.33085401]
[1746495854061,0.3963729,94446.0,94445.0,0.11905881]
[1746495854260,0.2118086,94439.0,94438.0,0.0409]
[1746495854457,0.5726086,94439.0,94438.0,0.2527109]
[1746495855158,0.4434,94439.0,94438.0,0.3707109]
[1746495855465,0.6552086,94439.0,94438.0,0.3707109]
[1746495855668,0.6562086,94439.0,94438.0,0.3717109]
[1746495855964,0.6572086,94439.0,94438.0,0.3717109]
[1746495856163,0.3628,94439.0,94438.0,0.3717109]
[1746495856367,0.3628,94439.0,94438.0,0.4517109]
[1746495856665,0.3628,94439.0,94438.0,0.3717109]
[1746495856966,0.3628,94439.0,94438.0,0.4116109]
[1746495858873,0.5746086,94439.0,94438.0,0.4116109]
[1746495859660,0.68190756,94439.0,94438.0,0.4116109]
[1746495860167,0.47009896,94439.0,94438.0,0.4116109]
[1746495861067,0.68168591,94439.0,94438.0,0.4116109]
[1746495862668,0.68168591,94439.0,94438.0,0.1998]
[1746495862865,0.72258591,94439.0,94438.0,0.1998]
[1746495863559,0.61528695,94439.0,94438.0,0.1998]
[1746495864169,0.61528695,94439.0,94438.0,0.4116109]
[1746495865968,0.61528695,94439.0,94438.0,0.1599]
[1746495866466,0.61528695,94439.0,94438.0,0.119]
[1746495866861,0.72258591,94439.0,94438.0,0.119]
[1746495867356,0.82847392,94439.0,94438.0,0.119]
[1746495867559,0.87047392,94439.0,94438.0,0.119]
[1746495870070,0.87047392,94439.0,94438.0,0.001]
[1746495871366,0.2118221,94433.0,94432.0,0.00158844]
[1746495871575,0.2118311,94429.0,94424.0,0.0392]
[1746495871764,0.2118311,94429.0,94428.0,0.2539333]
[1746495872270,0.2118311,94429.0,94428.0,0.1601]
[1746495872857,0.2128311,94429.0,94428.0,0.119]
[1746495873072,0.2128311,94429.0,94428.0,0.3308333]
[1746495873266,0.2128311,94429.0,94428.0,0.119]
[1746495874762,0.2138311,94429.0,94428.0,0.119]
[1746495875465,0.2138311,94429.0,94428.0,0.1589]
[1746495875669,0.2138311,94429.0,94428.0,0.3707333]
[1746495877769,0.002,94429.0,94428.0,0.3707333]
[1746495878171,0.2138311,94429.0,94428.0,0.3707333]
[1746495879777,0.002,94429.0,94428.0,0.3707333]
[1746495880277,0.2138311,94429.0,94428.0,0.3707333]
[1746495882679,0.2544311,94429.0,94428.0,0.3707333]
[1746495883479,0.0426,94429.0,94428.0,0.3707333]
[1746495883980,0.1497878,94429.0,94428.0,0.3707333]
[1746495884583,0.3616189,94429.0,94428.0,0.3707333]
[1746495885180,0.1497878,94429.0,94428.0,0.3707333]
[1746495885382,0.1091878,94429.0,94428.0,0.3707333]
[1746495885680,0.1091878,94429.0,94428.0,0.4607333]
[1746495886980,0.002,94429.0,94428.0,0.4607333]
[1746495888482,0.002,94429.0,94428.0,0.3707333]
[1746495891975,0.0427,94429.0,94428.0,0.3707333]
[1746495892882,0.002,94429.0,94428.0,0.3707333]
[1746495901287,0.16150981,94439.0,94428.0,0.8548]
[1746495901482,0.16150981,94439.0,94438.0,0.5726109]
[1746495901683,0.0015,94450.0,94449.0,0.2117862]
[1746495901980,0.0015,94450.0,94449.0,0.29948555]
[1746495902186,0.0015,94450.0,94449.0,0.41748555]
[1746495902885,0.0045,94450.0,94449.0,0.49478555]
[1746495903285,0.0075,94450.0,94449.0,0.49478555]
[1746495903786,0.3683,94450.0,94449.0,0.4070862]
[1746495904379,0.4097,94450.0,94449.0,0.4070862]
[1746495904580,0.4097,94450.0,94449.0,0.3297862]
[1746495905283,0.621484,94450.0,94449.0,0.118]
[1746495905889,0.621484,94450.0,94449.0,0.3297862]
[1746495910690,0.621484,94450.0,94449.0,0.118]
[1746495910886,1.030284,94450.0,94449.0,0.118]
[1746495911197,0.2118065,94442.0,94441.0,0.2117982]
[1746495911400,0.3608,94442.0,94441.0,0.2117982]
[1746495911705,0.482,94442.0,94441.0,0.2117982]
[1746495912208,0.6938019,94442.0,94441.0,0.3297982]
[1746495913505,0.6938019,94442.0,94420.0,0.43124]
[1746495913506,0.2647935,94430.0,94429.0,0.0529574]
[1746495913703,0.6255935,94430.0,94429.0,0.0529574]
[1746495914008,0.5726355,94430.0,94429.0,0.2647817]
[1746495914198,0.5726355,94430.0,94429.0,0.3827817]
[1746495914908,0.6536355,94430.0,94429.0,0.3827817]
[1746495915609,0.4418,94430.0,94429.0,0.3827817]
[1746495916310,0.4418,94430.0,94429.0,0.4232817]
[1746495916607,0.4428,94430.0,94429.0,0.4242817]
[1746495917307,0.6546288,94430.0,94429.0,0.4242817]
[1746495917509,0.6556288,94430.0,94429.0,0.4242817]
[1746495919006,0.0425,94430.0,94429.0,0.4242817]
[1746495919207,0.002,94430.0,94429.0,0.4242817]
[1746495920509,0.002,94430.0,94429.0,0.4642817]
[1746495922110,0.002,94430.0,94429.0,0.8250817]
[1746495923416,0.002,94430.0,94429.0,0.8450817]
[1746495926810,0.08050761,94441.0,94440.0,0.2118064]
[1746495927310,0.08050761,94441.0,94440.0,0.3298064]
[1746495927711,0.08050761,94441.0,94440.0,0.4092064]
[1746495928212,0.08050761,94441.0,94440.0,0.4492064]
[1746495928809,0.08150761,94441.0,94440.0,0.4492064]
[1746495929306,0.08250761,94441.0,94440.0,0.4492064]
[1746495929501,0.08250761,94441.0,94440.0,0.4092064]
[1746495930107,0.08250761,94441.0,94440.0,0.4892064]
[1746495930321,0.08250761,94441.0,94440.0,0.5950944]
[1746495930517,0.002,94441.0,94440.0,0.5950944]
[1746495930811,0.002,94441.0,94440.0,0.6050944]
[1746495931608,0.10733442,94448.0,94444.0,0.0529493]
[1746495931810,0.10733442,94448.0,94447.0,0.2117907]
[1746495932011,0.10733442,94448.0,94447.0,0.3417907]
[1746495932205,0.10733442,94448.0,94447.0,0.5656707]
[1746495932910,0.11033442,94448.0,94447.0,0.5656707]
[1746495933712,0.11133442,94448.0,94447.0,0.5656707]
[1746495934214,0.004,94448.0,94447.0,0.5656707]
[1746495934512,0.10733442,94458.0,94457.0,0.2117683]
[1746495935110,0.10733442,94458.0,94457.0,0.3297683]
[1746495935310,0.10733442,94458.0,94457.0,0.41913194]
[1746495935708,0.11033442,94458.0,94457.0,0.41913194]
[1746495936116,0.11333442,94458.0,94457.0,0.42013194]
[1746495936818,0.11333442,94458.0,94457.0,0.45013194]
[1746495937717,0.001,94476.0,94465.0,0.2117503]
[1746495938017,0.0401,94473.0,94465.0,0.5725503]
[1746495938211,0.13424096,94472.0,94471.0,0.2117369]
[1746495938410,0.13424096,94472.0,94469.0,0.0529349]
[1746495938411,0.13424096,94472.0,94465.0,0.118]
[1746495938606,0.121,94471.0,94470.0,0.2117391]
[1746495938806,0.4818,94471.0,94470.0,0.2117391]
[1746495939207,0.6935369,94471.0,94470.0,0.3297391]
[1746495939723,0.6935369,94471.0,94470.0,0.118]
[1746495940219,0.2117414,94469.0,94468.0,0.2117428]
[1746495940805,0.2117481,94467.0,94466.0,0.2117471]
[1746495941312,0.2908481,94467.0,94466.0,0.2117471]
[1746495942915,0.6516481,94467.0,94466.0,0.2117471]
[1746495947125,0.6506481,94467.0,94466.0,0.2117471]
[1746495947327,0.6516481,94467.0,94466.0,0.2127471]
[1746495947829,0.211775,94457.0,94456.0,0.2647058]
[1746495948023,0.572575,94457.0,94456.0,0.2647058]
[1746495949121,0.572575,94457.0,94456.0,0.3827058]
[1746495949428,0.0529509,94442.0,94441.0,0.2647423]
[1746495949724,0.4137509,94442.0,94441.0,0.27301215]
[1746495950118,0.4137509,94442.0,94441.0,0.3827423]
[1746495950725,0.5726041,94442.0,94441.0,0.3827423]
[1746495951118,0.5716041,94442.0,94441.0,0.3827423]
[1746495951320,0.5706041,94442.0,94441.0,0.3827423]
[1746495951518,0.6502041,94442.0,94441.0,0.3827423]
[1746495952525,0.6502041,94442.0,94441.0,0.118]
[1746495952727,0.6502041,94442.0,94441.0,0.3298041]
[1746495953425,0.6512041,94442.0,94441.0,0.3308041]
[1746495954331,0.6512041,94442.0,94441.0,0.119]
[1746495955819,0.2118221,94433.0,94428.0,0.2118317]
[1746495956019,0.5726221,94433.0,94430.0,0.2118287]
[1746495956219,0.5726221,94433.0,94432.0,0.11958844]
[1746495956721,0.6508221,94433.0,94432.0,0.11958844]
[1746495957223,0.6518221,94433.0,94432.0,0.12058844]
[1746495957622,0.6528221,94433.0,94432.0,0.12258844]
[1746495958127,0.6528221,94433.0,94432.0,0.00458844]
[1746495960523,1.1675181,94433.0,94432.0,0.00458844]
[1746495960716,1.1675181,94433.0,94427.0,0.00158832]
[1746495960717,0.2118333,94428.0,94427.0,0.00158832]
[1746495961129,0.2118333,94428.0,94427.0,0.11958832]
[1746495961531,0.2905333,94428.0,94427.0,0.11958832]
[1746495962124,0.2905333,94428.0,94427.0,0.33142382]
[1746495962329,0.2915333,94428.0,94427.0,0.33442382]
[1746495962918,0.2925333,94428.0,94427.0,0.33442382]
[1746495974333,0.6533333,94428.0,94427.0,0.33442382]
[1746495974530,0.4415,94428.0,94427.0,0.33442382]
[1746495974725,0.3628,94428.0,94427.0,0.33442382]
[1746495975424,0.3618,94428.0,94427.0,0.33442382]
[1746495975630,0.3628,94428.0,94427.0,0.33442382]
[1746495976726,0.3618,94428.0,94427.0,0.33142382]
[1746495976925,0.3618,94428.0,94427.0,0.33242382]
[1746495979132,0.5736333,94428.0,94427.0,0.12058832]
[1746495979636,0.6795333,94428.0,94427.0,0.12058832]
[1746495980136,0.7209333,94428.0,94427.0,0.00258832]
[1746495980941,0.7209333,94428.0,94427.0,0.001]
[1746495982738,0.7209333,94428.0,94427.0,0.2128355]
[1746495982933,1.1297333,94428.0,94427.0,0.2128355]
[1746495987041,1.0238333,94428.0,94427.0,0.2128355]
[1746495987944,1.3846333,94428.0,94427.0,0.2128355]
[1746495989746,1.3846333,94428.0,94427.0,0.001]
[1746495990048,0.2648218,94420.0,94419.0,0.0529632]
[1746495990240,0.6256218,94420.0,94419.0,0.0529632]
[1746495991246,0.6785856,94420.0,94419.0,0.3828167]
[1746495991448,0.6805856,94420.0,94419.0,0.3318535]
[1746495992745,0.6805856,94420.0,94419.0,0.12]
[1746495994247,0.8020856,94420.0,94419.0,0.002]
[1746495995241,0.8020856,94420.0,94419.0,0.12]
[1746495997850,1.2108856,94420.0,94419.0,0.12]
[1746495998343,0.2118647,94414.0,94413.0,0.039]
[1746495998544,0.2118916,94403.0,94402.0,0.2648644]
[1746495998749,0.5726916,94403.0,94402.0,0.3045644]
[1746495998949,0.5726916,94403.0,94394.0,0.0529772]
[1746495998950,0.507128,94403.0,94380.0,0.00158911]
[1746495999142,0.2119276,94387.0,94386.0,0.3073004]
[1746495999649,0.2109276,94387.0,94386.0,0.3470004]
[1746496000144,0.4137796,94391.0,94389.0,0.2119186]
[1746496000145,0.2119187,94390.0,94389.0,0.2119186]
[1746496000855,0.2515187,94390.0,94389.0,0.2119186]
[1746496001246,0.3608,94391.0,94390.0,0.2119186]
[1746496001853,0.3608,94391.0,94390.0,0.2511186]
[1746496002055,0.3608,94391.0,94390.0,0.3691186]
[1746496002353,0.4004,94391.0,94390.0,0.3691186]
[1746496002548,0.6123163,94391.0,94390.0,0.3691186]
[1746496002944,0.6133163,94391.0,94390.0,0.3691186]
[1746496003848,0.4014,94391.0,94390.0,0.3691186]
[1746496004353,0.4024,94391.0,94390.0,0.3691186]
[1746496004650,0.3628,94391.0,94390.0,0.3691186]
[1746496004857,0.002,94391.0,94390.0,0.3691186]
[1746496005348,0.002,94391.0,94390.0,0.4516186]
[1746496006195,0.002,94391.0,94390.0,0.4716186]
[1746496006691,0.4088,94402.0,94401.0,0.2118939]
[1746496007191,0.4088,94402.0,94401.0,0.3298939]
[1746496007577,0.4088,94402.0,94401.0,0.3696939]
[1746496007784,0.4098,94402.0,94401.0,0.3696939]
[1746496009894,0.001,94402.0,94401.0,0.3696939]
[1746496011691,0.002,94402.0,94401.0,0.3706939]
[1746496013401,0.002,94402.0,94401.0,0.4122939]
[1746496017095,0.002,94402.0,94401.0,0.4622939]
[1746496018403,0.002,94402.0,94401.0,0.4322939]
[1746496018705,0.002,94402.0,94401.0,0.4122939]
[1746496020604,0.002,94402.0,94401.0,0.4222939]
[1746496021702,0.002,94402.0,94401.0,0.4122939]
[1746496028475,0.002,94402.0,94401.0,0.3308939]
[1746496029378,0.0845,94402.0,94401.0,0.3308939]
[1746496032576,0.0845,94402.0,94401.0,0.4408939]
[1746496032980,0.0845,94402.0,94401.0,0.3308939]
[1746496034388,0.0413,94402.0,94401.0,0.3308939]
[1746496034579,0.0413,94402.0,94401.0,0.4508939]
[1746496035182,0.0413,94402.0,94401.0,0.4408939]
[1746496035874,0.0413,94402.0,94401.0,0.3308939]
[1746496041487,0.0413,94402.0,94401.0,0.3712939]
[1746496044293,0.13409029,94411.0,94401.0,0.3712939]
[1746496044294,0.13409029,94411.0,94401.0,0.825332]
[1746496044483,0.49452348,94428.0,94414.0,0.2118647]
[1746496044682,0.0386,94424.0,94414.0,0.4097847]
[1746496044885,0.16090835,94420.0,94414.0,0.5157007]
[1746496045087,0.16090835,94420.0,94414.0,0.6337007]
[1746496045683,0.0025,94415.0,94414.0,0.6237007]
[1746496046287,0.0035,94415.0,94414.0,0.6247007]
[1746496051689,0.0035,94415.0,94414.0,0.5047007]
[1746496051898,0.13372348,94428.0,94421.0,0.211849]
[1746496052092,0.0418,94427.0,94421.0,0.712649]
[1746496052298,0.13372348,94428.0,94424.0,0.2118423]
[1746496052491,0.13372348,94428.0,94424.0,0.40650188]
[1746496053091,0.13372348,94428.0,94424.0,0.60600188]
[1746496053291,0.135683,94425.0,94424.0,0.60600188]
[1746496053908,0.135683,94425.0,94424.0,0.61600188]
[1746496055189,0.135683,94425.0,94424.0,1.11600188]
[1746496055395,0.136683,94425.0,94424.0,1.11600188]
[1746496055695,0.08035441,94431.0,94430.0,0.2118288]
[1746496055894,0.0396,94437.0,94436.0,0.2118154]
[1746496056095,0.0409,94445.0,94438.0,0.2118109]
[1746496056401,0.0823,94445.0,94438.0,0.2718109]
[1746496056901,0.0823,94445.0,94444.0,0.2117974]
[1746496057101,0.0823,94445.0,94444.0,0.3297974]
[1746496059103,0.0873,94445.0,94444.0,0.3307974]
[1746496059315,0.0913,94445.0,94444.0,0.3317974]
[1746496070802,0.1324,94445.0,94444.0,0.3317974]
[1746496071897,0.1324,94445.0,94444.0,0.3617974]
[1746496072102,0.1324,94445.0,94444.0,0.3317974]
[1746496077812,0.0913,94445.0,94444.0,0.3317974]
[1746496079811,0.14689663,94449.0,94448.0,0.2117884]
[1746496080018,0.14689663,94449.0,94448.0,0.3876644]
[1746496080314,0.14689663,94449.0,94448.0,2.0056644]
[1746496081105,0.15289663,94449.0,94448.0,2.0066644]
[1746496081519,0.15289663,94449.0,94448.0,1.8307884]
[1746496081713,0.19919663,94449.0,94448.0,0.3317884]
[1746496081915,0.41098283,94449.0,94448.0,0.12]
[1746496082814,0.41098283,94449.0,94448.0,0.3317884]
[1746496083011,0.49528283,94449.0,94448.0,0.12]
[1746496083316,0.49528283,94449.0,94448.0,0.3317884]
[1746496083616,0.28349663,94449.0,94448.0,0.3317884]
[1746496093637,0.28349663,94449.0,94439.0,0.0678]
[1746496093638,1.00017263,94449.0,94430.0,0.0529571]
[1746496093841,0.2118311,94429.0,94414.0,0.00158858]
[1746496094331,0.3177311,94429.0,94419.0,0.2118518]
[1746496094634,0.3177311,94429.0,94414.0,0.00158858]
[1746496094635,0.2118355,94427.0,94426.0,0.16133984]
[1746496095033,0.3177395,94427.0,94426.0,0.16133984]
[1746496095245,0.3612395,94427.0,94426.0,0.37317764]
[1746496095538,0.3592395,94427.0,94426.0,0.16133984]
[1746496096437,0.3592395,94427.0,94420.0,0.21511978]
[1746496096438,0.2118602,94416.0,94415.0,0.00105915]
[1746496096632,0.9814602,94416.0,94415.0,0.00105915]
[1746496096837,1.08737621,94416.0,94415.0,0.00105915]
[1746496097036,1.08737621,94416.0,94415.0,0.21292165]
[1746496097230,1.21407621,94416.0,94415.0,0.21292165]
[1746496097431,1.21407621,94416.0,94415.0,0.00105915]
[1746496097639,1.21407621,94416.0,94415.0,0.00305915]
[1746496097938,1.21407621,94416.0,94415.0,0.00505915]
[1746496097939,1.21507621,94416.0,94415.0,0.00505915]
[1746496098142,1.33307621,94416.0,94415.0,0.21692165]
[1746496099340,1.21507621,94416.0,94415.0,0.21692165]
[1746496101137,1.21507621,94416.0,94415.0,0.00505915]
[1746496101352,0.2118984,94400.0,94399.0,0.2118962]
[1746496101944,0.2118984,94399.0,94398.0,0.2528006]
[1746496103145,0.2068984,94399.0,94398.0,0.3708006]
[1746496103545,0.2895984,94399.0,94398.0,0.3708006]
[1746496103931,0.2905984,94399.0,94398.0,0.3758006]
[1746496104231,0.2855984,94399.0,94398.0,0.3758006]
[1746496104431,0.2855984,94399.0,94398.0,0.4180006]
[1746496104636,0.2865984,94399.0,94398.0,0.4220006]
[1746496105145,0.2865984,94399.0,94398.0,0.127]
[1746496106047,0.2865984,94399.0,94398.0,0.2147]
[1746496106347,0.2865984,94399.0,94398.0,0.4266006]
[1746496107538,0.2460984,94399.0,94398.0,0.4266006]
[1746496109251,0.0442,94399.0,94398.0,0.4266006]
[1746496109449,0.2560984,94399.0,94398.0,0.4266006]
[1746496109649,0.0442,94399.0,94398.0,0.4266006]
[1746496109844,0.002,94399.0,94398.0,0.4266006]
[1746496110750,0.5746984,94399.0,94398.0,0.1708]
[1746496111252,0.5746984,94399.0,94398.0,0.0528]
[1746496111550,0.6186984,94399.0,94398.0,0.0528]
[1746496112343,0.6186984,94399.0,94398.0,0.0478]
[1746496112547,0.6186984,94399.0,94398.0,0.2597006]
[1746496112938,0.6186984,94399.0,94398.0,0.0478]
[1746496113344,0.6186984,94399.0,94398.0,0.2597006]
[1746496113548,0.6186984,94399.0,94398.0,0.2557006]
[1746496114144,0.7246304,94399.0,94398.0,0.2119006]
[1746496115253,0.7923904,94399.0,94398.0,0.2119006]
[1746496116154,0.2119006,94398.0,94397.0,0.00158903]
[1746496116357,0.4014366,94398.0,94397.0,0.00158903]
[1746496117658,0.4024366,94398.0,94397.0,0.00158903]
[1746496117858,0.4024366,94398.0,94397.0,0.21349193]
[1746496118954,0.4024366,94398.0,94395.0,0.1352765]
[1746496118955,0.2119051,94396.0,94395.0,0.0823]
[1746496119164,0.6207051,94396.0,94395.0,0.0823]
[1746496119457,0.7266411,94396.0,94395.0,0.0823]
[1746496119657,0.2119163,94391.0,94390.0,0.2944159]
[1746496119858,0.5727163,94391.0,94390.0,0.2944159]
[1746496120453,0.5727163,94391.0,94390.0,0.3359159]
[1746496120852,0.5737163,94391.0,94390.0,0.3359159]
[1746496121055,0.5737163,94391.0,94390.0,0.3784159]
[1746496121251,0.6151163,94391.0,94390.0,0.3784159]
[1746496121454,0.6161163,94391.0,94390.0,0.3794159]
[1746496122051,0.6161163,94391.0,94390.0,0.4974159]
[1746496124166,0.5747163,94391.0,94390.0,0.4974159]
[1746496125663,0.3628,94391.0,94390.0,0.4974159]
[1746496127660,0.002,94391.0,94390.0,0.5574159]
[1746496127864,0.002,94391.0,94390.0,0.4974159]
[1746496128066,0.002,94391.0,94390.0,0.5574159]
[1746496128261,0.002,94391.0,94390.0,0.9133599]
[1746496130463,0.002,94391.0,94390.0,0.6633599]
[1746496131459,0.002,94391.0,94390.0,0.4974159]
[1746496139171,0.3628,94391.0,94390.0,0.4974159]
[1746496139470,0.3628,94391.0,94390.0,0.4134186]
[1746496140471,0.3628,94391.0,94390.0,0.4549186]
[1746496140672,0.5747163,94391.0,94390.0,0.4549186]
[1746496141666,0.6136163,94391.0,94390.0,0.4549186]
[1746496142775,0.4017,94391.0,94390.0,0.4549186]
[1746496144073,0.4415,94391.0,94390.0,0.4549186]
[1746496144964,0.6534163,94391.0,94390.0,0.4134186]
[1746496149681,0.4415,94391.0,94390.0,0.4134186]
[1746496150470,0.6534163,94391.0,94390.0,0.4134186]
[1746496150671,0.4415,94391.0,94390.0,0.4134186]
[1746496150872,0.6534163,94391.0,94390.0,0.4539186]
[1746496151373,0.4415,94391.0,94390.0,0.4539186]
[1746496151580,0.6534163,94391.0,94390.0,0.4539186]
[1746496153881,0.6534163,94391.0,94390.0,0.4134186]
[1746496159294,0.4026,94391.0,94390.0,0.4134186]
[1746496159596,0.3628,94391.0,94390.0,0.4548186]
[1746496171097,0.002,94391.0,94390.0,0.4548186]
[1746496175909,0.0428,94391.0,94390.0,0.4548186]
[1746496178411,0.0428,94391.0,94390.0,0.2429]
[1746496178603,0.3360163,94391.0,94390.0,0.2015]
[1746496179311,0.3360163,94391.0,94390.0,0.0835]
[1746496179512,0.3360163,94391.0,94390.0,0.2954186]
[1746496182115,0.3360163,94391.0,94390.0,0.4134186]
[1746496183108,0.1241,94391.0,94390.0,0.4134186]
[1746496187510,0.1241,94391.0,94390.0,0.4565186]
[1746496193219,0.1241,94391.0,94390.0,0.4134186]
[1746496198833,0.1241,94391.0,94390.0,0.4570186]
[1746496200231,0.0835,94391.0,94390.0,0.4570186]
[1746496200419,0.0428,94391.0,94390.0,0.4570186]
[1746496201329,0.0428,94391.0,94390.0,0.5001186]
[1746496217645,0.002,94391.0,94390.0,0.5001186]
[1746496218754,0.0464,94391.0,94390.0,0.5001186]
[1746496224757,0.12708082,94391.0,94390.0,0.5001186]
[1746496226356,0.08268082,94391.0,94390.0,0.5001186]
[1746496226558,0.08268082,94391.0,94390.0,0.6060626]
[1746496226852,0.08268082,94391.0,94390.0,0.6860626]
[1746496227057,0.08268082,94391.0,94390.0,0.5001186]
[1746496227253,0.12648082,94391.0,94390.0,0.5001186]
[1746496229151,0.0458,94391.0,94390.0,0.5001186]
[1746496231457,0.3014163,94391.0,94390.0,0.2015]
[1746496231855,0.7102163,94391.0,94390.0,0.2015]
[1746496233045,0.7102163,94391.0,94390.0,0.4134186]
[1746496233260,0.79089712,94391.0,94390.0,0.2954186]
[1746496233857,0.80089659,94391.0,94390.0,0.2954186]
[1746496234256,0.80089659,94391.0,94390.0,0.4134186]
[1746496235259,0.80089659,94391.0,94390.0,0.2954186]
[1746496236161,0.80089659,94391.0,94390.0,0.4134186]
[1746496236661,0.72021577,94391.0,94390.0,0.4134186]
[1746496236859,0.72421577,94391.0,94390.0,0.4124186]
[1746496237361,0.72821577,94391.0,94390.0,0.2005]
[1746496239459,0.2119276,94386.0,94385.0,0.00105948]
[1746496239663,0.5727276,94386.0,94385.0,0.00105948]
[1746496239962,0.5727276,94386.0,94379.0,0.0461]
[1746496239963,0.211941,94380.0,94379.0,0.0461]
[1746496240159,0.0529869,94377.0,94373.0,0.0446]
[1746496240358,0.3106424,94376.0,94375.0,0.211951]
[1746496240550,0.3965424,94376.0,94375.0,0.211951]
[1746496240751,0.1845879,94376.0,94373.0,0.0446]
[1746496240957,0.2119792,94363.0,94361.0,0.00963052]
[1746496241156,0.2119792,94363.0,94360.0,0.0446]
[1746496241157,0.5727792,94363.0,94360.0,0.0446]
[1746496241461,0.5727792,94363.0,94362.0,0.21357111]
[1746496241963,0.6175792,94363.0,94362.0,0.21357111]
[1746496242262,0.6175792,94363.0,94362.0,0.33157111]
[1746496242754,0.3608,94363.0,94362.0,0.33157111]
[1746496243758,0.3628,94363.0,94362.0,0.33257111]
[1746496246167,0.002,94363.0,94362.0,0.68854711]
[1746496246367,0.002,94363.0,94362.0,0.90854711]
[1746496246867,0.08054736,94370.0,94369.0,0.2119657]
[1746496247257,0.08054736,94370.0,94369.0,0.31793369]
[1746496247453,0.08054736,94377.0,94369.0,0.31793369]
[1746496247666,0.08054736,94377.0,94376.0,0.21195]
[1746496247863,0.08054736,94377.0,94376.0,0.29195]
[1746496248059,0.10739648,94382.0,94381.0,0.2119388]
[1746496248258,0.1343273,94389.0,94388.0,0.2119231]
[1746496248467,0.1343273,94389.0,94388.0,0.7002031]
[1746496248767,0.1343273,94389.0,94388.0,0.8061471]
[1746496249158,0.1343273,94389.0,94388.0,0.9241471]
[1746496249768,0.0877854,94389.0,94388.0,0.8641471]
[1746496249958,0.0877854,94389.0,94388.0,0.9841471]
[1746496250466,0.0877854,94389.0,94388.0,0.9941471]
[1746496250763,0.0887854,94389.0,94388.0,0.9951471]
[1746496250969,0.0897854,94389.0,94388.0,1.5415471]
[1746496251268,0.16044817,94395.0,94394.0,0.2119096]
[1746496251461,0.16044817,94395.0,94394.0,0.2919096]
[1746496251669,0.16044817,94395.0,94394.0,0.39784959]
[1746496251864,0.3608,94410.0,94409.0,0.2118759]
[1746496252069,0.3608,94410.0,94407.0,0.0529697]
[1746496252070,0.0015,94415.0,94410.0,0.2118737]
[1746496252266,0.0015,94415.0,94414.0,0.2118647]
[1746496252675,0.0015,94415.0,94414.0,0.3177807]
[1746496253070,0.0015,94415.0,94414.0,0.41586246]
[1746496253365,0.0015,94415.0,94414.0,0.53386246]
[1746496253674,0.0015,94415.0,94414.0,0.57386246]
[1746496254372,0.0075,94415.0,94414.0,0.57486246]
[1746496254676,1e-07,94415.0,94414.0,0.92486246]
[1746496254969,0.0050001,94415.0,94414.0,1.44586246]
[1746496255172,0.0050001,94415.0,94414.0,1.45387686]
[1746496256773,0.16044817,94428.0,94427.0,0.2118355]
[1746496257067,0.16044817,94428.0,94427.0,0.7581155]
[1746496257277,0.0455,94444.0,94443.0,0.2117997]
[1746496258263,0.0455,94444.0,94443.0,0.4196997]
[1746496258465,0.0015,94450.0,94445.0,0.2117952]
[1746496259170,0.0015,94450.0,94445.0,0.3297952]
[1746496260875,0.007,94446.0,94445.0,0.3307952]
[1746496261465,0.014,94446.0,94445.0,0.3317952]
[1746496263165,0.014,94446.0,94445.0,0.12]
[1746496263166,0.3159929,94446.0,94445.0,0.12]
[1746496263981,0.5659929,94446.0,94445.0,0.12]